{"text_format":"1","workbook":"xlsx","n_sheets":3,"sheets":["Accueil","Listes","BD articles menus"],"not_rendered":{"charts":0,"images":0,"macros":1,"external_links":0,"defined_names":0,"comments":0,"pivot_tables":0},"unopened":[],"bounds":{"document_bytes":16777216,"sheet_cells":100000,"rows_first":2000,"rows_last":500,"rows_between":2000,"halvings":0,"cell_chars":16384,"cell_head_chars":4096},"cells_cut":0,"cells_raw":0,"read":"whole","date_system":"1900"}

{"sheet":"Accueil","index":0,"n_rows":40,"n_cols":5,"rows_kept":40,"cut":false,"hidden":false,"merged":[[0,0,0,1]]}
[",",null,2024,"Open","Save"]
[null,null,null,"2023-06-10T11:48:18","2023-06-10T11:46:35"]
[null,null,null,"2023-06-10T11:48:52","2023-06-10T11:48:12"]
[null,null,null,"2023-06-10T12:01:31","2023-06-10T11:48:31"]
[null,null,null,"2023-06-10T12:06:55","2023-06-10T11:53:31"]
[null,null,null,"2023-06-11T15:39:55","2023-06-10T11:57:46"]
[null,null,null,"2023-06-11T19:21:34","2023-06-11T19:40:55"]
[null,null,null,"2023-06-12T11:03:53","2023-06-11T19:47:57"]
[null,null,null,"2023-06-13T11:26:30","2023-06-11T20:00:38"]
[null,null,null,"2023-06-14T11:18:55","2023-06-12T12:12:47"]
[null,null,null,"2023-06-14T15:08:01","2023-06-12T12:13:13"]
[null,null,null,"2023-06-14T18:44:31","2023-06-13T11:43:25"]
[null,null,null,"2023-06-15T10:42:13","2023-06-14T12:25:36"]
[null,null,null,"2023-06-15T13:18:54","2023-06-14T12:26:05"]
[null,null,null,"2023-06-15T14:35:47","2023-06-14T15:51:21"]
[null,null,null,"2023-06-15T15:06:34","2023-06-14T16:30:30"]
[null,null,null,"2023-06-15T18:48:19","2023-06-14T21:05:57"]
[null,null,null,"2023-06-16T10:46:10","2023-06-14T21:52:23"]
[null,null,null,"2023-06-16T21:21:12","2023-06-15T12:12:38"]
[null,null,null,"2023-06-17T11:30:46","2023-06-15T13:22:25"]
[null,null,null,"2023-06-17T17:08:16","2023-06-15T15:05:58"]
[null,null,null,"2023-06-19T11:09:52","2023-06-15T16:18:09"]
[null,null,null,"2023-06-23T10:39:04","2023-06-15T16:18:24"]
[null,null,null,"2023-06-23T15:01:42","2023-06-15T19:02:38"]
[null,null,null,"2023-06-23T18:39:24","2023-06-15T21:57:39"]
[null,null,null,"2023-06-23T21:35:11","2023-06-16T11:35:07"]
[null,null,null,"2023-06-24T12:07:11","2023-06-16T21:44:35"]
[null,null,null,"2023-06-26T11:05:24","2023-06-17T12:34:10"]
[null,null,null,"2023-06-26T18:48:09","2023-06-17T19:06:16"]
[null,null,null,"2023-07-16T10:56:08","2023-06-19T11:19:59"]
[null,null,null,null,"2023-06-23T11:08:50"]
[null,null,null,null,"2023-06-23T11:26:41"]
[null,null,null,null,"2023-06-23T11:33:42"]
[null,null,null,null,"2023-06-23T16:25:15"]
[null,null,null,null,"2023-06-23T19:52:24"]
[null,null,null,null,"2023-06-23T21:35:38"]
[null,null,null,null,"2023-06-24T12:23:47"]
[null,null,null,null,"2023-06-26T11:59:34"]
[null,null,null,null,"2023-06-26T21:15:09"]
[null,null,null,null,"2023-07-16T11:26:14"]

{"sheet":"Listes","index":1,"n_rows":121,"n_cols":22,"rows_kept":121,"cut":false,"hidden":false,"merged":[]}
[]
[]
["Nom nature création","Code nature création",null,"Nom nature article menu","Code nature article menu",null,"Nom période","Code période",null,"Nom conditionnement","Code conditionnement",null,"Nom produit","Code produit","Libellé produit","Clé produit",null,"Nom dessert midi retraite","Code dessert midi retraite",null,"Nom dessert soir","Code dessert soir"]
["Création articles menus","CAM",null,"Dessert midi retraite","DMR",null,"Dimanche midi","PAM01",null,"1 bocal ou 1 boîte pour 1 repas","CAM01",null,"Pomme","DMR01","Dessert midi retraite",{"$f":"TabProduits[[#This Row],[Nom produit]]&TabProduits[[#This Row],[Libellé produit]]","v":"PommeDessert midi retraite"},null,"Pomme","DMR01",null,"Pomme","DS01"]
["Menu midi retraite","MMR",null,"Dessert soir","DS",null,"Dimanche midi et soir","PAM02",null,"1 boîte de 6 œufs. 3 œufs pour 1 repas","CAM02",null,"Pomme","DS01","Dessert soir",{"$f":"TabProduits[[#This Row],[Nom produit]]&TabProduits[[#This Row],[Libellé produit]]","v":"PommeDessert soir"}]
["Menu journalier","MJ",null,"Desserts weekend","DW",null,"Dimanche soir","PAM03",null,"1 boîte ou 1 pot pour 1 repas","CAM03",null,"Ananas","DW01","Desserts weekend",{"$f":"TabProduits[[#This Row],[Nom produit]]&TabProduits[[#This Row],[Libellé produit]]","v":"AnanasDesserts weekend"}]
["Menu viandes midi weekend","MVMW",null,"Légumes midi retraite","LMR",null,"Lundi à dimanche soirs","PAM04",null,"1 boîte pour 1 repas","CAM04",null,"Autres fruits","DW02","Desserts weekend",{"$f":"TabProduits[[#This Row],[Nom produit]]&TabProduits[[#This Row],[Libellé produit]]","v":"Autres fruitsDesserts weekend"}]
[null,null,null,"Légumes soirs lundi mardi","LSLM",null,"Lundi à vendredi midis","PAM05",null,"1 boîte pour 2 repas","CAM05",null,"Avocats","DW03","Desserts weekend",{"$f":"TabProduits[[#This Row],[Nom produit]]&TabProduits[[#This Row],[Libellé produit]]","v":"AvocatsDesserts weekend"}]
[null,null,null,"Légumes soirs mercredi jeudi","LSMJ",null,"Lundi à vendredi soirs","PAM06",null,"1 botte ou 1 sachet pour 1 repas","CAM06",null,"Bananes","DW04","Desserts weekend",{"$f":"TabProduits[[#This Row],[Nom produit]]&TabProduits[[#This Row],[Libellé produit]]","v":"BananesDesserts weekend"}]
[null,null,null,"Légumes soirs vendredi","LSV",null,"Lundi et mardi soirs","PAM07",null,"1 botte ou 1 sachet pour 2 repas","CAM07",null,"Clémentines","DW05","Desserts weekend",{"$f":"TabProduits[[#This Row],[Nom produit]]&TabProduits[[#This Row],[Libellé produit]]","v":"ClémentinesDesserts weekend"}]
[null,null,null,"Légumes weekend samedi","LWS",null,"Mercredi et jeudi soirs","PAM08",null,"1 morceau de 400 grammes (Leclerc) pour 3 repas","CAM08",null,"Crème","DW06","Desserts weekend",{"$f":"TabProduits[[#This Row],[Nom produit]]&TabProduits[[#This Row],[Libellé produit]]","v":"CrèmeDesserts weekend"}]
[null,null,null,"Légumes weekend dimanche","LWD",null,"Samedi et dimanche midis","PAM09",null,"1 morceau de 500 grammes pour 5 repas","CAM09",null,"Dattes","DW07","Desserts weekend",{"$f":"TabProduits[[#This Row],[Nom produit]]&TabProduits[[#This Row],[Libellé produit]]","v":"DattesDesserts weekend"}]
[null,null,null,"Viande menu midi retraite","VMR",null,"Samedi et dimanche midis et soirs","PAM10",null,"1 pack de 4 pots pour le weekend. 1 pot pour 1 repas","CAM10",null,"Figues","DW08","Desserts weekend",{"$f":"TabProduits[[#This Row],[Nom produit]]&TabProduits[[#This Row],[Libellé produit]]","v":"FiguesDesserts weekend"}]
[null,null,null,"Viande menu midi weekend","VMW",null,"Samedi midi et soir","PAM11",null,"1 pack de 6 pots. 3 pots pour 1 repas","CAM11",null,"Fromage blanc","DW09","Desserts weekend",{"$f":"TabProduits[[#This Row],[Nom produit]]&TabProduits[[#This Row],[Libellé produit]]","v":"Fromage blancDesserts weekend"}]
[null,null,null,"Viande menu soir","VS",null,"Vendredi soir","PAM12",null,"1 paquet pour 1 repas","CAM12",null,"Fruits au sirop","DW10","Desserts weekend",{"$f":"TabProduits[[#This Row],[Nom produit]]&TabProduits[[#This Row],[Libellé produit]]","v":"Fruits au siropDesserts weekend"}]
[null,null,null,null,null,null,null,null,null,"1 paquet pour 2 repas","CAM13",null,"Fruits de saison","DW11","Desserts weekend",{"$f":"TabProduits[[#This Row],[Nom produit]]&TabProduits[[#This Row],[Libellé produit]]","v":"Fruits de saisonDesserts weekend"}]
[null,null,null,null,null,null,null,null,null,"1 paquet pour 2 repas. 1 ou 2 saucisses pour 1 repas","CAM14",null,"Gâteau de riz","DW12","Desserts weekend",{"$f":"TabProduits[[#This Row],[Nom produit]]&TabProduits[[#This Row],[Libellé produit]]","v":"Gâteau de rizDesserts weekend"}]
[null,null,null,null,null,null,null,null,null,"1 paquet pour 4 repas","CAM15",null,"Gâteau de semoule","DW13","Desserts weekend",{"$f":"TabProduits[[#This Row],[Nom produit]]&TabProduits[[#This Row],[Libellé produit]]","v":"Gâteau de semouleDesserts weekend"}]
[null,null,null,null,null,null,null,null,null,"1 paquet pour 5 repas (Betteraves rouges)","CAM16",null,"Gâteaux samedi dimanche","DW14","Desserts weekend",{"$f":"TabProduits[[#This Row],[Nom produit]]&TabProduits[[#This Row],[Libellé produit]]","v":"Gâteaux samedi dimancheDesserts weekend"}]
[null,null,null,null,null,null,null,null,null,"1 sachet de 2 kilogrammes. 1 pomme pour 1 repas","CAM17",null,"Mousse au chocolat","DW15","Desserts weekend",{"$f":"TabProduits[[#This Row],[Nom produit]]&TabProduits[[#This Row],[Libellé produit]]","v":"Mousse au chocolatDesserts weekend"}]
[null,null,null,null,null,null,null,null,null,"1 sachet pour 2 repas (Chips)","CAM18",null,"Oranges","DW16","Desserts weekend",{"$f":"TabProduits[[#This Row],[Nom produit]]&TabProduits[[#This Row],[Libellé produit]]","v":"OrangesDesserts weekend"}]
[null,null,null,null,null,null,null,null,null,"1 sachet pour 4 repas","CAM19",null,"Petits suisses","DW17","Desserts weekend",{"$f":"TabProduits[[#This Row],[Nom produit]]&TabProduits[[#This Row],[Libellé produit]]","v":"Petits suissesDesserts weekend"}]
[null,null,null,null,null,null,null,null,null,"1 sachet pour 6 repas. 5 tranches par repas (Saucisson)","CAM20",null,"Pruneaux","DW18","Desserts weekend",{"$f":"TabProduits[[#This Row],[Nom produit]]&TabProduits[[#This Row],[Libellé produit]]","v":"PruneauxDesserts weekend"}]
[null,null,null,null,null,null,null,null,null,"1 tranche pour 1 repas","CAM21",null,"Riz au lait","DW19","Desserts weekend",{"$f":"TabProduits[[#This Row],[Nom produit]]&TabProduits[[#This Row],[Libellé produit]]","v":"Riz au laitDesserts weekend"}]
[null,null,null,null,null,null,null,null,null,"1 tranche pour 2 repas","CAM22",null,"Tapioca","DW20","Desserts weekend",{"$f":"TabProduits[[#This Row],[Nom produit]]&TabProduits[[#This Row],[Libellé produit]]","v":"TapiocaDesserts weekend"}]
[null,null,null,null,null,null,null,null,null,"125 grammes pour 1 repas (Bifteck haché de cheval)","CAM23",null,"Yaourts","DW21","Desserts weekend",{"$f":"TabProduits[[#This Row],[Nom produit]]&TabProduits[[#This Row],[Libellé produit]]","v":"YaourtsDesserts weekend"}]
[null,null,null,null,null,null,null,null,null,"20 frites pour 1 repas","CAM24",null,"Asperges","LMR01","Légumes midi retraite",{"$f":"TabProduits[[#This Row],[Nom produit]]&TabProduits[[#This Row],[Libellé produit]]","v":"AspergesLégumes midi retraite"}]
[null,null,null,null,null,null,null,null,null,"25 grammes pour 1 repas","CAM25",null,"Avocat","LMR02","Légumes midi retraite",{"$f":"TabProduits[[#This Row],[Nom produit]]&TabProduits[[#This Row],[Libellé produit]]","v":"AvocatLégumes midi retraite"}]
[null,null,null,null,null,null,null,null,null,"3 tranches pour 1 repas","CAM26",null,"Carottes","LMR03","Légumes midi retraite",{"$f":"TabProduits[[#This Row],[Nom produit]]&TabProduits[[#This Row],[Libellé produit]]","v":"CarottesLégumes midi retraite"}]
[null,null,null,null,null,null,null,null,null,"5 cuillères pour 1 repas","CAM27",null,"Céleri","LMR04","Légumes midi retraite",{"$f":"TabProduits[[#This Row],[Nom produit]]&TabProduits[[#This Row],[Libellé produit]]","v":"CéleriLégumes midi retraite"}]
[null,null,null,null,null,null,null,null,null,"50 grammes pour 1 repas","CAM28",null,"Champignons","LMR05","Légumes midi retraite",{"$f":"TabProduits[[#This Row],[Nom produit]]&TabProduits[[#This Row],[Libellé produit]]","v":"ChampignonsLégumes midi retraite"}]
[null,null,null,null,null,null,null,null,null,"Unité : 1 branche pour 1 repas","CAM29",null,"Concombre","LMR06","Légumes midi retraite",{"$f":"TabProduits[[#This Row],[Nom produit]]&TabProduits[[#This Row],[Libellé produit]]","v":"ConcombreLégumes midi retraite"}]
[null,null,null,null,null,null,null,null,null,"Unité : 1 morceau pour 2 repas","CAM30",null,"Couscous","LMR07","Légumes midi retraite",{"$f":"TabProduits[[#This Row],[Nom produit]]&TabProduits[[#This Row],[Libellé produit]]","v":"CouscousLégumes midi retraite"}]
[null,null,null,null,null,null,null,null,null,"Unité : 1 pour 1 repas","CAM31",null,"Maïs","LMR08","Légumes midi retraite",{"$f":"TabProduits[[#This Row],[Nom produit]]&TabProduits[[#This Row],[Libellé produit]]","v":"MaïsLégumes midi retraite"}]
[null,null,null,null,null,null,null,null,null,"Unité : 1 pour 2 repas","CAM32",null,"Pâtes à la sauce tomates","LMR09","Légumes midi retraite",{"$f":"TabProduits[[#This Row],[Nom produit]]&TabProduits[[#This Row],[Libellé produit]]","v":"Pâtes à la sauce tomatesLégumes midi retraite"}]
[null,null,null,null,null,null,null,null,null,"Unité : 1 pour 4 repas","CAM33",null,"Pâtes au beurre","LMR10","Légumes midi retraite",{"$f":"TabProduits[[#This Row],[Nom produit]]&TabProduits[[#This Row],[Libellé produit]]","v":"Pâtes au beurreLégumes midi retraite"}]
[null,null,null,null,null,null,null,null,null,"Unité : 1 tête pour 1 repas","CAM34",null,"Poireau","LMR11","Légumes midi retraite",{"$f":"TabProduits[[#This Row],[Nom produit]]&TabProduits[[#This Row],[Libellé produit]]","v":"PoireauLégumes midi retraite"}]
[null,null,null,null,null,null,null,null,null,"Unité : 2 à 4 pour 1 repas","CAM35",null,"Pomme de terre","LMR12","Légumes midi retraite",{"$f":"TabProduits[[#This Row],[Nom produit]]&TabProduits[[#This Row],[Libellé produit]]","v":"Pomme de terreLégumes midi retraite"}]
[null,null,null,null,null,null,null,null,null,"Unité : 2 pour 1 repas","CAM36",null,"Purée","LMR13","Légumes midi retraite",{"$f":"TabProduits[[#This Row],[Nom produit]]&TabProduits[[#This Row],[Libellé produit]]","v":"PuréeLégumes midi retraite"}]
[null,null,null,null,null,null,null,null,null,null,null,null,"Radis","LMR14","Légumes midi retraite",{"$f":"TabProduits[[#This Row],[Nom produit]]&TabProduits[[#This Row],[Libellé produit]]","v":"RadisLégumes midi retraite"}]
[null,null,null,null,null,null,null,null,null,null,null,null,"Riz","LMR15","Légumes midi retraite",{"$f":"TabProduits[[#This Row],[Nom produit]]&TabProduits[[#This Row],[Libellé produit]]","v":"RizLégumes midi retraite"}]
[null,null,null,null,null,null,null,null,null,null,null,null,"Salade","LMR16","Légumes midi retraite",{"$f":"TabProduits[[#This Row],[Nom produit]]&TabProduits[[#This Row],[Libellé produit]]","v":"SaladeLégumes midi retraite"}]
[null,null,null,null,null,null,null,null,null,null,null,null,"Tomates","LMR17","Légumes midi retraite",{"$f":"TabProduits[[#This Row],[Nom produit]]&TabProduits[[#This Row],[Libellé produit]]","v":"TomatesLégumes midi retraite"}]
[null,null,null,null,null,null,null,null,null,null,null,null,"Cassoulet","LSLM01","Légumes soirs lundi mardi",{"$f":"TabProduits[[#This Row],[Nom produit]]&TabProduits[[#This Row],[Libellé produit]]","v":"CassouletLégumes soirs lundi mardi"}]
[null,null,null,null,null,null,null,null,null,null,null,null,"Choucroute","LSLM02","Légumes soirs lundi mardi",{"$f":"TabProduits[[#This Row],[Nom produit]]&TabProduits[[#This Row],[Libellé produit]]","v":"ChoucrouteLégumes soirs lundi mardi"}]
[null,null,null,null,null,null,null,null,null,null,null,null,"Chou-fleur","LSLM03","Légumes soirs lundi mardi",{"$f":"TabProduits[[#This Row],[Nom produit]]&TabProduits[[#This Row],[Libellé produit]]","v":"Chou-fleurLégumes soirs lundi mardi"}]
[null,null,null,null,null,null,null,null,null,null,null,null,"Choux de Bruxelles","LSLM04","Légumes soirs lundi mardi",{"$f":"TabProduits[[#This Row],[Nom produit]]&TabProduits[[#This Row],[Libellé produit]]","v":"Choux de BruxellesLégumes soirs lundi mardi"}]
[null,null,null,null,null,null,null,null,null,null,null,null,"Couscous","LSLM05","Légumes soirs lundi mardi",{"$f":"TabProduits[[#This Row],[Nom produit]]&TabProduits[[#This Row],[Libellé produit]]","v":"CouscousLégumes soirs lundi mardi"}]
[null,null,null,null,null,null,null,null,null,null,null,null,"Endives","LSLM06","Légumes soirs lundi mardi",{"$f":"TabProduits[[#This Row],[Nom produit]]&TabProduits[[#This Row],[Libellé produit]]","v":"EndivesLégumes soirs lundi mardi"}]
[null,null,null,null,null,null,null,null,null,null,null,null,"Haricots verts","LSLM07","Légumes soirs lundi mardi",{"$f":"TabProduits[[#This Row],[Nom produit]]&TabProduits[[#This Row],[Libellé produit]]","v":"Haricots vertsLégumes soirs lundi mardi"}]
[null,null,null,null,null,null,null,null,null,null,null,null,"Maïs","LSLM08","Légumes soirs lundi mardi",{"$f":"TabProduits[[#This Row],[Nom produit]]&TabProduits[[#This Row],[Libellé produit]]","v":"MaïsLégumes soirs lundi mardi"}]
[null,null,null,null,null,null,null,null,null,null,null,null,"Paella","LSLM09","Légumes soirs lundi mardi",{"$f":"TabProduits[[#This Row],[Nom produit]]&TabProduits[[#This Row],[Libellé produit]]","v":"PaellaLégumes soirs lundi mardi"}]
[null,null,null,null,null,null,null,null,null,null,null,null,"Poireau","LSLM10","Légumes soirs lundi mardi",{"$f":"TabProduits[[#This Row],[Nom produit]]&TabProduits[[#This Row],[Libellé produit]]","v":"PoireauLégumes soirs lundi mardi"}]
[null,null,null,null,null,null,null,null,null,null,null,null,"Pomme de terre","LSLM11","Légumes soirs lundi mardi",{"$f":"TabProduits[[#This Row],[Nom produit]]&TabProduits[[#This Row],[Libellé produit]]","v":"Pomme de terreLégumes soirs lundi mardi"}]
[null,null,null,null,null,null,null,null,null,null,null,null,"Purée","LSLM12","Légumes soirs lundi mardi",{"$f":"TabProduits[[#This Row],[Nom produit]]&TabProduits[[#This Row],[Libellé produit]]","v":"PuréeLégumes soirs lundi mardi"}]
[null,null,null,null,null,null,null,null,null,null,null,null,"Quenelles","LSLM13","Légumes soirs lundi mardi",{"$f":"TabProduits[[#This Row],[Nom produit]]&TabProduits[[#This Row],[Libellé produit]]","v":"QuenellesLégumes soirs lundi mardi"}]
[null,null,null,null,null,null,null,null,null,null,null,null,"Riz","LSLM14","Légumes soirs lundi mardi",{"$f":"TabProduits[[#This Row],[Nom produit]]&TabProduits[[#This Row],[Libellé produit]]","v":"RizLégumes soirs lundi mardi"}]
[null,null,null,null,null,null,null,null,null,null,null,null,"Macédoine de légumes","LSMJ01","Légumes soirs mercredi jeudi",{"$f":"TabProduits[[#This Row],[Nom produit]]&TabProduits[[#This Row],[Libellé produit]]","v":"Macédoine de légumesLégumes soirs mercredi jeudi"}]
[null,null,null,null,null,null,null,null,null,null,null,null,"Petits pois","LSMJ02","Légumes soirs mercredi jeudi",{"$f":"TabProduits[[#This Row],[Nom produit]]&TabProduits[[#This Row],[Libellé produit]]","v":"Petits poisLégumes soirs mercredi jeudi"}]
[null,null,null,null,null,null,null,null,null,null,null,null,"Petits pois et jeunes carottes","LSMJ03","Légumes soirs mercredi jeudi",{"$f":"TabProduits[[#This Row],[Nom produit]]&TabProduits[[#This Row],[Libellé produit]]","v":"Petits pois et jeunes carottesLégumes soirs mercredi jeudi"}]
[null,null,null,null,null,null,null,null,null,null,null,null,"Ratatouille","LSMJ04","Légumes soirs mercredi jeudi",{"$f":"TabProduits[[#This Row],[Nom produit]]&TabProduits[[#This Row],[Libellé produit]]","v":"RatatouilleLégumes soirs mercredi jeudi"}]
[null,null,null,null,null,null,null,null,null,null,null,null,"Raviolis","LSMJ05","Légumes soirs mercredi jeudi",{"$f":"TabProduits[[#This Row],[Nom produit]]&TabProduits[[#This Row],[Libellé produit]]","v":"RaviolisLégumes soirs mercredi jeudi"}]
[null,null,null,null,null,null,null,null,null,null,null,null,"Tomates pelées","LSMJ06","Légumes soirs mercredi jeudi",{"$f":"TabProduits[[#This Row],[Nom produit]]&TabProduits[[#This Row],[Libellé produit]]","v":"Tomates peléesLégumes soirs mercredi jeudi"}]
[null,null,null,null,null,null,null,null,null,null,null,null,"Asperges","LSV01","Légumes soirs vendredi",{"$f":"TabProduits[[#This Row],[Nom produit]]&TabProduits[[#This Row],[Libellé produit]]","v":"AspergesLégumes soirs vendredi"}]
[null,null,null,null,null,null,null,null,null,null,null,null,"Avocat","LSV02","Légumes soirs vendredi",{"$f":"TabProduits[[#This Row],[Nom produit]]&TabProduits[[#This Row],[Libellé produit]]","v":"AvocatLégumes soirs vendredi"}]
[null,null,null,null,null,null,null,null,null,null,null,null,"Betterave rouge","LSV03","Légumes soirs vendredi",{"$f":"TabProduits[[#This Row],[Nom produit]]&TabProduits[[#This Row],[Libellé produit]]","v":"Betterave rougeLégumes soirs vendredi"}]
[null,null,null,null,null,null,null,null,null,null,null,null,"Carottes","LSV04","Légumes soirs vendredi",{"$f":"TabProduits[[#This Row],[Nom produit]]&TabProduits[[#This Row],[Libellé produit]]","v":"CarottesLégumes soirs vendredi"}]
[null,null,null,null,null,null,null,null,null,null,null,null,"Céleri","LSV05","Légumes soirs vendredi",{"$f":"TabProduits[[#This Row],[Nom produit]]&TabProduits[[#This Row],[Libellé produit]]","v":"CéleriLégumes soirs vendredi"}]
[null,null,null,null,null,null,null,null,null,null,null,null,"Champignons","LSV06","Légumes soirs vendredi",{"$f":"TabProduits[[#This Row],[Nom produit]]&TabProduits[[#This Row],[Libellé produit]]","v":"ChampignonsLégumes soirs vendredi"}]
[null,null,null,null,null,null,null,null,null,null,null,null,"Concombre","LSV07","Légumes soirs vendredi",{"$f":"TabProduits[[#This Row],[Nom produit]]&TabProduits[[#This Row],[Libellé produit]]","v":"ConcombreLégumes soirs vendredi"}]
[null,null,null,null,null,null,null,null,null,null,null,null,"Radis","LSV08","Légumes soirs vendredi",{"$f":"TabProduits[[#This Row],[Nom produit]]&TabProduits[[#This Row],[Libellé produit]]","v":"RadisLégumes soirs vendredi"}]
[null,null,null,null,null,null,null,null,null,null,null,null,"Salade","LSV09","Légumes soirs vendredi",{"$f":"TabProduits[[#This Row],[Nom produit]]&TabProduits[[#This Row],[Libellé produit]]","v":"SaladeLégumes soirs vendredi"}]
[null,null,null,null,null,null,null,null,null,null,null,null,"Salsifis","LSV10","Légumes soirs vendredi",{"$f":"TabProduits[[#This Row],[Nom produit]]&TabProduits[[#This Row],[Libellé produit]]","v":"SalsifisLégumes soirs vendredi"}]
[null,null,null,null,null,null,null,null,null,null,null,null,"Tomates","LSV11","Légumes soirs vendredi",{"$f":"TabProduits[[#This Row],[Nom produit]]&TabProduits[[#This Row],[Libellé produit]]","v":"TomatesLégumes soirs vendredi"}]
[null,null,null,null,null,null,null,null,null,null,null,null,"Pâtes à la sauce tomates","LWS01","Légumes weekend samedi",{"$f":"TabProduits[[#This Row],[Nom produit]]&TabProduits[[#This Row],[Libellé produit]]","v":"Pâtes à la sauce tomatesLégumes weekend samedi"}]
[null,null,null,null,null,null,null,null,null,null,null,null,"Pâtes au beurre","LWS02","Légumes weekend samedi",{"$f":"TabProduits[[#This Row],[Nom produit]]&TabProduits[[#This Row],[Libellé produit]]","v":"Pâtes au beurreLégumes weekend samedi"}]
[null,null,null,null,null,null,null,null,null,null,null,null,"Pâtes au fromage râpé","LWS03","Légumes weekend samedi",{"$f":"TabProduits[[#This Row],[Nom produit]]&TabProduits[[#This Row],[Libellé produit]]","v":"Pâtes au fromage râpéLégumes weekend samedi"}]
[null,null,null,null,null,null,null,null,null,null,null,null,"Asperges","LWD01","Légumes weekend dimanche",{"$f":"TabProduits[[#This Row],[Nom produit]]&TabProduits[[#This Row],[Libellé produit]]","v":"AspergesLégumes weekend dimanche"}]
[null,null,null,null,null,null,null,null,null,null,null,null,"Chips","LWD02","Légumes weekend dimanche",{"$f":"TabProduits[[#This Row],[Nom produit]]&TabProduits[[#This Row],[Libellé produit]]","v":"ChipsLégumes weekend dimanche"}]
[null,null,null,null,null,null,null,null,null,null,null,null,"Frites","LWD03","Légumes weekend dimanche",{"$f":"TabProduits[[#This Row],[Nom produit]]&TabProduits[[#This Row],[Libellé produit]]","v":"FritesLégumes weekend dimanche"}]
[null,null,null,null,null,null,null,null,null,null,null,null,"Haricots verts","LWD04","Légumes weekend dimanche",{"$f":"TabProduits[[#This Row],[Nom produit]]&TabProduits[[#This Row],[Libellé produit]]","v":"Haricots vertsLégumes weekend dimanche"}]
[null,null,null,null,null,null,null,null,null,null,null,null,"Rôti d'agneau","VMR01","Viande menu midi retraite",{"$f":"TabProduits[[#This Row],[Nom produit]]&TabProduits[[#This Row],[Libellé produit]]","v":"Rôti d'agneauViande menu midi retraite"}]
[null,null,null,null,null,null,null,null,null,null,null,null,"Rôti de bœuf","VMR02","Viande menu midi retraite",{"$f":"TabProduits[[#This Row],[Nom produit]]&TabProduits[[#This Row],[Libellé produit]]","v":"Rôti de bœufViande menu midi retraite"}]
[null,null,null,null,null,null,null,null,null,null,null,null,"Rôti de cheval","VMR03","Viande menu midi retraite",{"$f":"TabProduits[[#This Row],[Nom produit]]&TabProduits[[#This Row],[Libellé produit]]","v":"Rôti de chevalViande menu midi retraite"}]
[null,null,null,null,null,null,null,null,null,null,null,null,"Rôti de porc","VMR04","Viande menu midi retraite",{"$f":"TabProduits[[#This Row],[Nom produit]]&TabProduits[[#This Row],[Libellé produit]]","v":"Rôti de porcViande menu midi retraite"}]
[null,null,null,null,null,null,null,null,null,null,null,null,"Rôti de veau","VMR05","Viande menu midi retraite",{"$f":"TabProduits[[#This Row],[Nom produit]]&TabProduits[[#This Row],[Libellé produit]]","v":"Rôti de veauViande menu midi retraite"}]
[null,null,null,null,null,null,null,null,null,null,null,null,"Agneau","VMW01","Viande menu midi weekend",{"$f":"TabProduits[[#This Row],[Nom produit]]&TabProduits[[#This Row],[Libellé produit]]","v":"AgneauViande menu midi weekend"}]
[null,null,null,null,null,null,null,null,null,null,null,null,"Bœuf","VMW02","Viande menu midi weekend",{"$f":"TabProduits[[#This Row],[Nom produit]]&TabProduits[[#This Row],[Libellé produit]]","v":"BœufViande menu midi weekend"}]
[null,null,null,null,null,null,null,null,null,null,null,null,"Cheval","VMW03","Viande menu midi weekend",{"$f":"TabProduits[[#This Row],[Nom produit]]&TabProduits[[#This Row],[Libellé produit]]","v":"ChevalViande menu midi weekend"}]
[null,null,null,null,null,null,null,null,null,null,null,null,"Dinde","VMW04","Viande menu midi weekend",{"$f":"TabProduits[[#This Row],[Nom produit]]&TabProduits[[#This Row],[Libellé produit]]","v":"DindeViande menu midi weekend"}]
[null,null,null,null,null,null,null,null,null,null,null,null,"Poisson","VMW05","Viande menu midi weekend",{"$f":"TabProduits[[#This Row],[Nom produit]]&TabProduits[[#This Row],[Libellé produit]]","v":"PoissonViande menu midi weekend"}]
[null,null,null,null,null,null,null,null,null,null,null,null,"Porc","VMW06","Viande menu midi weekend",{"$f":"TabProduits[[#This Row],[Nom produit]]&TabProduits[[#This Row],[Libellé produit]]","v":"PorcViande menu midi weekend"}]
[null,null,null,null,null,null,null,null,null,null,null,null,"Veau","VMW07","Viande menu midi weekend",{"$f":"TabProduits[[#This Row],[Nom produit]]&TabProduits[[#This Row],[Libellé produit]]","v":"VeauViande menu midi weekend"}]
[null,null,null,null,null,null,null,null,null,null,null,null,"Bifteck haché de bœuf","VS01","Viande menu soir",{"$f":"TabProduits[[#This Row],[Nom produit]]&TabProduits[[#This Row],[Libellé produit]]","v":"Bifteck haché de bœufViande menu soir"}]
[null,null,null,null,null,null,null,null,null,null,null,null,"Bifteck haché de cheval","VS02","Viande menu soir",{"$f":"TabProduits[[#This Row],[Nom produit]]&TabProduits[[#This Row],[Libellé produit]]","v":"Bifteck haché de chevalViande menu soir"}]
[null,null,null,null,null,null,null,null,null,null,null,null,"Bifteck haché de veau","VS03","Viande menu soir",{"$f":"TabProduits[[#This Row],[Nom produit]]&TabProduits[[#This Row],[Libellé produit]]","v":"Bifteck haché de veauViande menu soir"}]
[null,null,null,null,null,null,null,null,null,null,null,null,"Bouchée à la reine","VS04","Viande menu soir",{"$f":"TabProduits[[#This Row],[Nom produit]]&TabProduits[[#This Row],[Libellé produit]]","v":"Bouchée à la reineViande menu soir"}]
[null,null,null,null,null,null,null,null,null,null,null,null,"Boudin","VS05","Viande menu soir",{"$f":"TabProduits[[#This Row],[Nom produit]]&TabProduits[[#This Row],[Libellé produit]]","v":"BoudinViande menu soir"}]
[null,null,null,null,null,null,null,null,null,null,null,null,"Cervelas","VS06","Viande menu soir",{"$f":"TabProduits[[#This Row],[Nom produit]]&TabProduits[[#This Row],[Libellé produit]]","v":"CervelasViande menu soir"}]
[null,null,null,null,null,null,null,null,null,null,null,null,"Cœur","VS07","Viande menu soir",{"$f":"TabProduits[[#This Row],[Nom produit]]&TabProduits[[#This Row],[Libellé produit]]","v":"CœurViande menu soir"}]
[null,null,null,null,null,null,null,null,null,null,null,null,"Croque-monsieur","VS08","Viande menu soir",{"$f":"TabProduits[[#This Row],[Nom produit]]&TabProduits[[#This Row],[Libellé produit]]","v":"Croque-monsieurViande menu soir"}]
[null,null,null,null,null,null,null,null,null,null,null,null,"Foie","VS09","Viande menu soir",{"$f":"TabProduits[[#This Row],[Nom produit]]&TabProduits[[#This Row],[Libellé produit]]","v":"FoieViande menu soir"}]
[null,null,null,null,null,null,null,null,null,null,null,null,"Fromage de tête","VS10","Viande menu soir",{"$f":"TabProduits[[#This Row],[Nom produit]]&TabProduits[[#This Row],[Libellé produit]]","v":"Fromage de têteViande menu soir"}]
[null,null,null,null,null,null,null,null,null,null,null,null,"Jambon","VS11","Viande menu soir",{"$f":"TabProduits[[#This Row],[Nom produit]]&TabProduits[[#This Row],[Libellé produit]]","v":"JambonViande menu soir"}]
[null,null,null,null,null,null,null,null,null,null,null,null,"Jambonneau","VS12","Viande menu soir",{"$f":"TabProduits[[#This Row],[Nom produit]]&TabProduits[[#This Row],[Libellé produit]]","v":"JambonneauViande menu soir"}]
[null,null,null,null,null,null,null,null,null,null,null,null,"Mortadelle","VS13","Viande menu soir",{"$f":"TabProduits[[#This Row],[Nom produit]]&TabProduits[[#This Row],[Libellé produit]]","v":"MortadelleViande menu soir"}]
[null,null,null,null,null,null,null,null,null,null,null,null,"Œufs","VS14","Viande menu soir",{"$f":"TabProduits[[#This Row],[Nom produit]]&TabProduits[[#This Row],[Libellé produit]]","v":"ŒufsViande menu soir"}]
[null,null,null,null,null,null,null,null,null,null,null,null,"Pizza","VS15","Viande menu soir",{"$f":"TabProduits[[#This Row],[Nom produit]]&TabProduits[[#This Row],[Libellé produit]]","v":"PizzaViande menu soir"}]
[null,null,null,null,null,null,null,null,null,null,null,null,"Poisson","VS16","Viande menu soir",{"$f":"TabProduits[[#This Row],[Nom produit]]&TabProduits[[#This Row],[Libellé produit]]","v":"PoissonViande menu soir"}]
[null,null,null,null,null,null,null,null,null,null,null,null,"Quiche lorraine","VS17","Viande menu soir",{"$f":"TabProduits[[#This Row],[Nom produit]]&TabProduits[[#This Row],[Libellé produit]]","v":"Quiche lorraineViande menu soir"}]
[null,null,null,null,null,null,null,null,null,null,null,null,"Roulade à la pistache","VS18","Viande menu soir",{"$f":"TabProduits[[#This Row],[Nom produit]]&TabProduits[[#This Row],[Libellé produit]]","v":"Roulade à la pistacheViande menu soir"}]
[null,null,null,null,null,null,null,null,null,null,null,null,"Roulé au fromage","VS19","Viande menu soir",{"$f":"TabProduits[[#This Row],[Nom produit]]&TabProduits[[#This Row],[Libellé produit]]","v":"Roulé au fromageViande menu soir"}]
[null,null,null,null,null,null,null,null,null,null,null,null,"Salami","VS20","Viande menu soir",{"$f":"TabProduits[[#This Row],[Nom produit]]&TabProduits[[#This Row],[Libellé produit]]","v":"SalamiViande menu soir"}]
[null,null,null,null,null,null,null,null,null,null,null,null,"Saucisses","VS21","Viande menu soir",{"$f":"TabProduits[[#This Row],[Nom produit]]&TabProduits[[#This Row],[Libellé produit]]","v":"SaucissesViande menu soir"}]
[null,null,null,null,null,null,null,null,null,null,null,null,"Saucisson","VS22","Viande menu soir",{"$f":"TabProduits[[#This Row],[Nom produit]]&TabProduits[[#This Row],[Libellé produit]]","v":"SaucissonViande menu soir"}]
[null,null,null,null,null,null,null,null,null,null,null,null,"Tête persillée","VS23","Viande menu soir",{"$f":"TabProduits[[#This Row],[Nom produit]]&TabProduits[[#This Row],[Libellé produit]]","v":"Tête persilléeViande menu soir"}]
[null,null,null,null,null,null,null,null,null,null,null,null,"Tête roulée","VS24","Viande menu soir",{"$f":"TabProduits[[#This Row],[Nom produit]]&TabProduits[[#This Row],[Libellé produit]]","v":"Tête rouléeViande menu soir"}]
[null,null,null,null,null,null,null,null,null,null,null,null,"Thon","VS25","Viande menu soir",{"$f":"TabProduits[[#This Row],[Nom produit]]&TabProduits[[#This Row],[Libellé produit]]","v":"ThonViande menu soir"}]
[null,null,null,null,null,null,null,null,null,null,null,null,"Viande cassoulet","VS26","Viande menu soir",{"$f":"TabProduits[[#This Row],[Nom produit]]&TabProduits[[#This Row],[Libellé produit]]","v":"Viande cassouletViande menu soir"}]
[null,null,null,null,null,null,null,null,null,null,null,null,"Viande choucroute","VS27","Viande menu soir",{"$f":"TabProduits[[#This Row],[Nom produit]]&TabProduits[[#This Row],[Libellé produit]]","v":"Viande choucrouteViande menu soir"}]
[null,null,null,null,null,null,null,null,null,null,null,null,"Viande paella","VS28","Viande menu soir",{"$f":"TabProduits[[#This Row],[Nom produit]]&TabProduits[[#This Row],[Libellé produit]]","v":"Viande paellaViande menu soir"}]

{"sheet":"BD articles menus","index":2,"n_rows":2,"n_cols":15,"rows_kept":2,"cut":false,"hidden":false,"merged":[]}
["Nom nature création","Code nature création","Nom nature article menu","Code nature article menu","Nom article","Code article","Nom période","Code période","Nom conditionnement","Code conditionnement","Quantité pour un repas","Quantité pour la journée","Date création article menu","Numéro création article menu","Clé article"]
[null,null,null,null,null,null,null,null,null,null,null,null,null,null,{"$f":"TabBDArticlesMenus[[#This Row],[Code nature article menu]]&TabBDArticlesMenus[[#This Row],[Nom article]]","v":""}]